bitfinex/quotes_ETHUSD_20220103
["timestamp","ask_amount","ask_price","bid_price","bid_amount"]
[1641227906860,1.74079084,3746.1,3746.0,0.11168022]
[1641227907059,0.74079084,3746.1,3746.0,0.11168022]
[1641227907259,1.73599084,3746.1,3746.0,0.11168022]
[1641227907459,1.74079084,3746.1,3746.0,0.11168022]
[1641227907661,1.5550573,3746.1,3746.0,0.11168022]
[1641227907860,0.31619084,3746.1,3746.0,0.11168022]
[1641227908260,1.55580818,3746.0,3745.8,0.105359]
[1641227908462,1.59272542,3746.0,3745.8,0.105359]
[1641227908660,1.89272542,3746.0,3745.9,0.00113684]
[1641227909305,3.039481,3746.0,3745.9,0.00113684]
[1641227911010,3.05567489,3746.0,3745.9,0.00113684]
[1641227911209,1.57200207,3746.0,3745.9,0.00113684]
[1641227911412,1.57200207,3746.0,3745.9,0.10649584]
[1641227911610,1.57200207,3746.0,3745.9,5.25649584]
[1641227911812,0.90451367,3746.0,3745.9,5.25649584]
[1641227912010,0.06369356,3746.6,3746.0,6.7]
[1641227912211,0.06369356,3746.6,3746.2,0.66725]
[1641227912411,0.0022737,3746.5,3746.2,0.66725]
[1641227912810,0.00170528,3746.4,3746.2,0.66725]
[1641227913065,0.00170528,3746.4,3746.2,1.33451]
[1641227913268,0.00113685,3746.3,3746.2,1.33451]
[1641227913466,0.00113685,3746.3,3746.2,1.66726]
[1641227913666,0.00113685,3746.3,3746.2,0.66726]
[1641227913869,0.06369288,3747.3,3746.2,0.66726]
[1641227913870,0.06369288,3747.3,3746.3,8.65373239]
[1641227914070,0.06369288,3747.3,3746.4,1.0]
[1641227914266,0.00341054,3746.9,3746.6,0.66718]
[1641227914466,0.01710342,3747.3,3746.6,0.66718]
[1641227914868,0.00170527,3747.2,3746.9,1.24602391]
[1641227915268,0.00113685,3747.1,3746.9,1.24602391]
[1641227915671,0.00284212,3747.4,3746.9,1.24602391]
[1641227915970,0.0022737,3747.3,3747.0,0.66719]
[1641227916170,0.01275316,3747.3,3747.0,0.66719]
[1641227916470,0.01047946,3747.3,3747.0,0.66719]
[1641227917103,3.01338964,3747.2,3747.0,0.66719]
[1641227917504,0.00113685,3747.1,3746.9,2.58037391]
[1641227919711,3.01452649,3747.1,3746.9,2.58037391]
[1641227919911,3.31452649,3747.1,3746.9,2.58037391]
[1641227920766,3.31452649,3747.1,3746.9,3.24753391]
[1641227921063,3.01338964,3747.0,3746.9,3.24753391]
[1641227921263,1.64746305,3747.5,3747.0,8.65]
[1641227921463,1.64746305,3747.5,3747.1,0.66707]
[1641227921764,0.00170527,3747.4,3747.1,0.66707]
[1641227922164,0.00113685,3747.3,3747.1,0.66707]
[1641227922564,0.00113685,3747.3,3747.2,4.61707]
[1641227922764,0.00113685,3747.3,3747.2,0.66707]
[1641227924419,0.00113685,3747.3,3747.2,0.67068956]
[1641227933318,0.00113685,3747.3,3747.2,0.00361956]
[1641227935963,0.00113685,3747.3,3747.2,0.67067956]
[1641227935964,0.30113685,3747.3,3747.2,0.67067956]
[1641227936164,0.00113685,3747.3,3747.2,0.67067956]
[1641227936567,1.00102,3748.0,3747.3,8.65]
[1641227936765,1.00102,3748.0,3747.5,2.00091]
[1641227936964,0.00341054,3747.9,3747.6,1.05130559]
[1641227937364,0.00284211,3747.8,3747.6,1.05130559]
[1641227937567,0.00284211,3747.8,3747.6,1.71827559]
[1641227937772,0.00227369,3747.7,3747.6,1.71827559]
[1641227941626,0.00227369,3747.7,3747.6,0.66697]
[1641227941924,0.00227369,3747.7,3747.5,0.66697]
[1641227942327,0.00170527,3747.6,3747.5,0.66697]
[1641227942524,0.00170527,3747.6,3747.4,1.33394]
[1641227942970,0.00113684,3747.5,3747.4,1.33394]
[1641227943374,0.00170527,3747.5,3747.4,1.33394]
[1641227945677,0.00170527,3747.5,3747.4,1.33752993]
[1641227945877,0.00170527,3747.5,3747.4,6.52150417]
[1641227946378,0.00170527,3747.5,3747.4,2.47150417]
[1641227950661,0.00170527,3747.5,3747.4,3.80553417]
[1641227954569,0.30170527,3747.5,3747.4,2.47159417]
[1641227954769,0.00170527,3747.5,3747.4,2.47159417]
[1641227959477,0.00170527,3747.5,3747.4,1.13756417]
[1641227960278,0.00170527,3747.5,3747.4,0.00358993]
[1641227960878,0.30170527,3747.5,3747.4,0.00358993]
[1641227961281,0.00170527,3747.5,3747.4,0.00358993]
[1641227961939,4.01448857,3747.5,3747.4,0.00358993]
[1641227962142,3.12088857,3747.5,3747.4,0.00358993]
[1641227962342,4.12088857,3747.5,3747.4,0.00358993]
[1641227962545,1.0,3747.4,3746.8,0.105359]
[1641227962745,1.3346535,3747.2,3746.8,0.105359]
[1641227962943,2.43722903,3747.1,3746.9,0.0022737]
[1641227963143,2.73722903,3747.1,3746.9,0.0022737]
[1641227963346,0.3,3747.1,3746.9,0.0022737]
[1641227963543,1.00181626,3747.2,3746.9,0.0022737]
[1641227963743,0.33448626,3747.2,3746.9,0.0022737]
[1641227963943,0.667314,3747.1,3746.9,0.0022737]
[1641227964143,0.3,3747.0,3746.9,0.0022737]
[1641227964444,3.3127833,3747.0,3746.9,0.0022737]
[1641227965245,0.3,3747.0,3746.9,0.0022737]
[1641227965774,3.3127833,3747.0,3746.9,0.0022737]
[1641227966576,5.67306149,3747.0,3746.9,0.0022737]
[1641227966778,3.3127833,3747.0,3746.9,0.00552998]
[1641227967984,3.3232633,3747.0,3746.9,0.00552998]
[1641227975077,3.1232633,3747.0,3746.9,0.00552998]
[1641227975273,3.0232633,3747.0,3746.9,0.00552998]
[1641227976279,3.3232633,3747.0,3746.9,0.00552998]
[1641227979826,6.33e-05,3747.0,3746.9,8.65552998]
[1641227980332,0.3,3747.7,3747.3,0.66706]
[1641227980581,0.3,3747.7,3747.4,0.66706]
[1641227980785,0.00170527,3747.6,3747.3,0.66706]
[1641227981186,0.00113684,3747.5,3747.3,0.66706]
[1641227982290,0.00113684,3747.5,3747.4,1.33415]
[1641227988172,0.00113684,3747.5,3747.4,1.33734104]
[1641227990476,0.00113684,3747.5,3747.4,4.70443104]
[1641227990676,0.00113684,3747.5,3747.4,2.00443104]
[1641227992617,0.00113684,3747.5,3747.4,1.33734104]
[1641227999222,0.30113684,3747.5,3747.4,1.33734104]
[1641227999427,1.00102,3748.0,3747.4,1.33734104]
[1641227999628,1.00102,3748.0,3747.7,0.66701]
[1641227999827,1.00102,3748.0,3747.8,1.31013469]
[1641228000228,1.70581783,3748.0,3747.8,1.31013469]
[1641228001528,0.3,3747.9,3747.8,1.31013469]
[1641228002331,0.3,3747.9,3747.7,0.66701]
[1641228002535,0.9671582,3747.9,3747.7,0.66701]
[1641228002731,0.00170527,3747.8,3747.7,0.66701]
[1641228002979,3.01465136,3747.8,3747.7,0.66701]
[1641228008632,3.31465136,3747.8,3747.4,0.67038104]
[1641228008833,0.6671868,3747.7,3747.4,0.67038104]
[1641228009035,0.3,3747.6,3747.4,0.67038104]
[1641228009635,3.01294609,3747.5,3747.4,0.67038104]
[1641228009838,3.01294609,3747.5,3747.4,0.00319104]
[1641228014951,0.56042,3748.0,3747.4,11.39991226]
[1641228015155,1.64746305,3748.5,3747.9,0.01278357]
[1641228015351,0.06334147,3749.0,3748.5,8.65]
[1641228015550,1.5251507,3749.1,3748.6,8.65]
[1641228015849,0.00568423,3748.7,3748.3,1.0]
[1641228016051,2.54597361,3749.3,3749.1,1.20304784]
[1641228016451,1.5251507,3749.6,3749.3,0.66662]
[1641228016648,0.1648381,3749.8,3749.4,0.384]
[1641228016849,0.00454739,3749.5,3749.4,0.384]
[1641228017050,4.04417271,3750.1,3749.4,0.384]
[1641228017051,4.04417271,3750.1,3749.5,8.65]
[1641228017251,4.04417271,3750.1,3749.8,0.6665]
[1641228017451,0.00284212,3750.0,3749.9,8.03744754]
[1641228017654,6.12,3750.9,3750.5,1.05380767]
[1641228017855,6.42,3750.9,3749.9,4.9181]
[1641228018102,0.00454739,3750.8,3749.9,4.9181]
[1641228018386,0.00397896,3750.7,3750.0,1.3331]
[1641228018586,0.00397896,3750.7,3750.4,1.33313]
[1641228018887,0.00341054,3750.6,3750.4,1.33313]
[1641228019088,0.00341054,3750.6,3749.6,5.3339]
[1641228019294,0.70386124,3750.7,3750.0,0.66669]
[1641228019295,0.00284212,3750.5,3750.0,0.66669]
[1641228019493,0.00284212,3750.5,3749.7,0.00170527]
[1641228019692,0.1056,3750.8,3749.7,0.00170527]
[1641228019693,0.00227369,3750.4,3749.7,0.00170527]
[1641228019893,1.333618,3750.1,3749.7,0.00170527]
[1641228020093,1.3650875,3750.1,3749.7,0.00170527]
[1641228020296,1.6650875,3750.1,3749.7,0.00170527]
[1641228020892,1.9650875,3750.1,3749.7,0.00170527]
[1641228021493,0.99953097,3749.9,3749.7,0.00170527]
[1641228023334,0.97778634,3749.9,3749.7,0.00170527]
[1641228024434,0.94502397,3749.9,3749.7,0.00170527]
[1641228024835,0.9801156,3749.9,3749.7,0.00170527]
[1641228026674,0.3,3749.8,3749.7,0.00170527]
[1641228026875,8.65,3749.7,3749.6,5.04972063]
[1641228027073,9.034,3749.7,3749.6,5.04972063]
[1641228027272,9.034,3749.7,3748.0,3.069]
[1641228027273,7.7,3749.6,3747.9,8.68515971]
[1641228027473,7.7,3749.6,3749.2,0.06280254]
[1641228027474,0.6671072,3749.3,3749.2,0.06280254]
[1641228027675,26.67666052,3749.3,3749.2,2.54e-06]
[1641228027979,2.0014344,3749.1,3747.7,0.00632266]
[1641228028178,0.384,3749.0,3747.7,0.00632266]
[1641228028373,1.088,3749.0,3747.8,0.00625266]
[1641228028577,0.1008,3748.9,3747.8,0.00625266]
[1641228028777,0.1008,3748.9,3748.1,1.38445425]
[1641228028778,0.6671448,3748.5,3748.1,1.38445425]
[1641228028979,1.00410417,3748.5,3748.1,1.38445425]
[1641228029234,0.3,3748.5,3748.2,0.00397896]
[1641228029439,0.38570527,3749.2,3748.2,0.00397896]
[1641228029638,0.38570527,3749.2,3748.3,1.33393]
[1641228029842,0.00113685,3749.1,3748.3,1.33393]
[1641228030040,0.70676664,3749.0,3748.9,1.32039588]
[1641228030241,0.00113685,3749.1,3748.9,1.32039588]
[1641228030445,0.00113685,3749.1,3748.9,1.93732588]
[1641228031044,0.00113685,3749.1,3748.9,0.61693]
[1641228031641,0.30113685,3749.1,3748.9,0.61693]
[1641228032445,0.30113685,3749.1,3749.0,0.00301309]
[1641228032843,0.00113685,3749.1,3749.0,0.00301309]
[1641228035690,0.00113685,3749.1,3749.0,0.80931126]
[1641228036590,1.34209968,3749.1,3749.0,0.80931126]
[1641228036851,1.44369968,3749.1,3749.0,0.80931126]
[1641228037053,1.44529968,3749.1,3749.0,0.80931126]
[1641228037255,7.59609968,3749.1,3749.0,0.80931126]
[1641228037451,9.67772737,3749.1,3749.0,0.80931126]
[1641228037654,10.67932737,3749.1,3749.0,0.80931126]
[1641228037851,10.67852737,3749.1,3749.0,0.80931126]
[1641228038051,10.67852737,3749.1,3749.0,0.00301309]
[1641228038052,10.69220147,3749.1,3749.0,0.00301309]
[1641228038253,13.32016455,3749.1,3749.0,0.00301309]
[1641228038655,13.38768198,3749.1,3749.0,0.00301309]
[1641228038959,14.68957993,3749.1,3749.0,1.309e-05]
[1641228039155,8.65,3749.0,3748.9,0.00301309]
[1641228039358,8.65,3749.0,3748.2,0.06280382]
[1641228039359,8.65,3748.9,3748.2,5.903e-05]
[1641228039557,1.37395437,3748.6,3748.2,5.903e-05]
[1641228039759,0.71410962,3748.5,3748.2,5.903e-05]
[1641228039963,1.81080962,3748.5,3748.2,5.903e-05]
[1641228040258,0.1304,3748.4,3748.2,5.903e-05]
[1641228040487,0.5112,3748.4,3748.2,5.903e-05]
[1641228040785,2.14253,3748.4,3748.2,5.903e-05]
[1641228040991,0.1192,3748.3,3748.2,5.903e-05]
[1641228041185,0.1192,3748.3,3747.0,1.4160847]
[1641228041386,1.27636541,3748.3,3748.2,0.00113684]
[1641228041584,2.27716541,3748.3,3748.2,0.00113684]
[1641228041785,4.0,3748.2,3747.5,0.01394197]
[1641228041984,2.27636541,3748.3,3747.5,0.01394197]
[1641228041985,0.6672328,3747.9,3747.5,0.01394197]
[1641228042288,0.1032,3747.8,3747.6,0.00341054]
[1641228042486,0.104,3747.8,3747.6,0.00341054]
[1641228042685,2.19042769,3747.8,3747.6,0.81021618]
[1641228042885,2.18962769,3747.8,3747.6,0.81021618]
[1641228043085,0.1048,3747.7,3747.6,0.80680564]
[1641228043286,0.1064,3747.7,3747.6,0.80680564]
[1641228043490,0.11287787,3747.7,3747.6,0.81293476]
[1641228043887,0.11207787,3747.7,3747.6,0.81293476]
[1641228044087,2.19370556,3747.7,3747.6,0.00612912]
[1641228044350,2.19290556,3747.7,3747.6,0.00612912]
[1641228044750,2.19370556,3747.7,3747.6,0.00612912]
[1641228045153,2.19290556,3747.7,3747.6,0.00612912]
[1641228045752,2.19210556,3747.7,3747.6,0.00612912]
[1641228047153,2.09210556,3747.7,3747.6,0.00612912]
[1641228047452,2.19530556,3747.7,3747.6,0.00612912]
[1641228047652,2.09210556,3747.7,3747.6,0.00612912]
[1641228048886,3.39090203,3747.7,3747.6,0.00612912]
[1641228049087,3.32419445,3747.7,3747.6,0.00612912]
[1641228049386,2.02539798,3747.7,3747.6,0.00612912]
[1641228052034,2.02539798,3747.7,3747.6,0.01866298]
[1641228052234,2.02539798,3747.7,3747.6,0.00612912]
[1641228052436,0.1088,3748.2,3747.6,0.00612912]
[1641228052633,0.1152,3748.2,3747.6,0.00612912]
[1641228052837,0.1112,3748.2,3747.7,0.00284212]
[1641228053034,1.32495848,3748.4,3747.7,0.00284212]
[1641228053237,0.1192,3748.3,3747.7,0.00284212]
[1641228053637,0.70223652,3748.0,3747.7,0.00284212]
[1641228053838,0.3,3747.9,3747.7,0.00284212]
[1641228054037,0.4024,3747.9,3747.7,0.00284212]
[1641228054236,0.4016,3747.9,3747.7,0.00284212]
[1641228054439,0.1032,3747.8,3747.7,0.00284212]
[1641228054639,0.1024,3747.8,3747.7,0.00284212]
[1641228055041,0.1032,3747.8,3747.7,0.00284212]
[1641228055242,0.1016,3747.8,3747.7,0.00284212]
[1641228055491,0.4024,3747.9,3747.7,0.00284212]
[1641228055890,0.4032,3747.9,3747.7,0.00284212]
[1641228056091,0.4024,3747.9,3747.7,0.00284212]
[1641228056291,0.4016,3747.9,3747.7,0.00284212]
[1641228056495,0.4024,3747.9,3747.7,0.00284212]
[1641228057295,0.1032,3747.9,3747.7,1.34323741]
[1641228057497,0.012,3749.1,3747.8,8.66264001]
[1641228057697,1.7008876,3749.5,3748.3,1.33389]
[1641228057900,0.00284211,3749.1,3748.3,1.33389]
[1641228058100,0.00284211,3749.1,3748.4,0.00113686]
[1641228058300,0.00227369,3749.0,3748.4,0.00113686]
[1641228058499,0.00227369,3749.0,3748.5,0.66691]
[1641228058698,1.13491401,3749.1,3748.5,0.66691]
[1641228058699,0.00170526,3748.9,3748.5,0.66691]
[1641228059101,0.00113684,3748.8,3748.5,0.66691]
[1641228059336,0.00113684,3748.8,3748.6,2.00075]
[1641228059544,0.00227369,3749.0,3748.7,0.66691]
[1641228059943,1.43491401,3749.1,3748.7,0.66691]
[1641228059944,0.00170526,3748.9,3748.7,0.66691]
[1641228060340,0.00113684,3748.8,3748.6,2.00075]
[1641228060739,1.43491401,3749.1,3748.6,2.00075]
[1641228060740,0.00227369,3749.0,3748.6,2.00075]
[1641228060943,0.00227369,3749.0,3748.7,0.96691]
[1641228061145,7.4538624,3750.0,3748.7,0.96691]
[1641228061146,6.15804449,3750.0,3748.7,0.96691]
[1641228061344,6.12,3750.0,3748.7,1.3]
[1641228061543,0.00284212,3749.4,3749.3,0.66677]
[1641228061745,0.00284212,3749.4,3749.2,2.66706]
[1641228061941,0.00284212,3749.4,3749.3,0.66676]
[1641228062142,6.12,3750.0,3749.4,1.40726759]
[1641228063200,6.12,3750.0,3749.7,0.6668]
[1641228063799,5.82013293,3750.0,3749.7,0.6668]
[1641228065303,6.12013293,3750.0,3749.7,0.6668]
[1641228065504,0.3,3750.0,3749.7,0.6668]
[1641228065903,2.40495194,3750.1,3749.8,0.00394607]
[1641228066307,0.00625266,3750.0,3749.8,0.00394607]
[1641228066732,0.00568424,3749.9,3749.8,0.00394607]
[1641228068841,2.35377353,3750.1,3749.8,0.00394607]
[1641228069042,2.385343,3750.1,3749.8,0.00394607]
[1641228069643,0.01047157,3750.0,3749.8,0.00394607]
[1641228072887,7.51347963,3749.9,3749.8,0.00394607]
[1641228073187,3.11347963,3749.9,3749.8,0.00394607]
[1641228073386,3.41347963,3749.9,3749.8,0.00394607]
[1641228073687,4.97443166,3749.9,3749.8,0.00394607]
[1641228073886,5.97443166,3749.9,3749.8,0.00394607]
[1641228074937,3.42395148,3749.9,3749.8,0.00394607]
[1641228075338,5.98490351,3749.9,3749.8,0.00394607]
[1641228075739,4.68490351,3749.9,3749.8,0.00394607]
[1641228076143,2.12395148,3749.9,3749.8,0.00394607]
[1641228076940,2.12395148,3749.9,3749.8,0.75345748]
[1641228077244,2.42395148,3749.9,3749.8,0.75345748]
[1641228078489,2.42395148,3749.9,3749.8,0.00394607]
[1641228079290,2.42395148,3749.9,3749.8,0.75350848]
[1641228080094,2.42395148,3749.9,3749.8,0.00394607]
[1641228081095,4.99072732,3749.9,3749.8,0.00394607]
[1641228081300,7.53960127,3749.8,3748.8,3.89262828]
[1641228081499,2.49458464,3749.7,3748.8,3.89262828]
[1641228081743,2.79458464,3749.7,3748.9,0.00568424]
[1641228081937,1.44321983,3749.6,3748.9,0.00568424]
[1641228082140,0.66714,3749.3,3748.9,0.00568424]
[1641228082338,1.1411518,3749.0,3748.9,0.00568424]
[1641228082539,1.4411518,3749.0,3748.9,0.00568424]
[1641228082736,3.4411518,3749.0,3748.9,0.00568424]
[1641228082943,3.48031516,3749.0,3748.9,0.00568424]
[1641228083142,4.48031516,3749.0,3748.9,0.00568424]
[1641228083741,20.88903516,3749.0,3748.5,0.0636302]
[1641228083940,0.6672174,3748.8,3748.5,0.0636302]
[1641228084141,16.34291171,3748.8,3748.6,0.00738951]
[1641228084343,0.3,3748.7,3748.6,0.00738951]
[1641228084543,3.97541096,3748.7,3748.6,0.00738951]
[1641228085245,4.97541096,3748.7,3748.6,0.00738951]
[1641228085685,1.21817998,3748.4,3748.0,0.01080005]
[1641228085885,1.91555864,3748.4,3748.0,0.01080005]
[1641228086185,0.3,3748.3,3748.0,0.01080005]
[1641228086685,0.3,3748.3,3747.7,0.01250532]
[1641228086886,0.6672138,3748.0,3747.7,0.01250532]
[1641228087087,0.70244703,3748.0,3747.7,0.01250532]
[1641228087286,0.3,3747.9,3747.7,0.01250532]
[1641228091847,0.3,3747.9,3747.6,0.01307374]
[1641228092056,2.301675,3747.9,3747.6,0.01307374]
[1641228092252,2.03522272,3747.9,3747.6,0.01307374]
[1641228092553,0.3,3747.8,3747.6,0.01307374]
[1641228094492,0.3,3747.8,3747.4,0.01421059]
[1641228094691,0.667234,3747.7,3747.4,0.01421059]
[1641228094893,0.3,3747.6,3747.4,1.40930206]
[1641228095292,0.3,3747.6,3747.5,0.01364217]
[1641228095893,2.0017086,3748.3,3747.5,0.01364217]
[1641228095894,0.6671216,3747.8,3747.5,0.01364217]
[1641228096093,0.3,3747.7,3747.5,0.01364217]
[1641228096494,2.0017086,3748.3,3747.8,0.66711]
[1641228096736,2.0017086,3748.3,3747.8,1.33422]
[1641228096936,0.3,3748.2,3747.9,0.01136847]
[1641228097539,2.0017086,3748.3,3748.0,1.35046872]
[1641228097737,2.0017086,3748.3,3748.0,2.01755872]
[1641228097936,0.03363077,3748.7,3748.1,0.01023163]
[1641228097937,1.3340753,3748.6,3748.1,0.01023163]
[1641228098940,0.6670542,3748.4,3748.2,1.3341]
[1641228099140,0.3,3748.3,3748.2,1.3341]
[1641228099345,0.3,3748.3,3748.2,1.6341]
[1641228099544,0.3,3748.3,3748.2,1.5841]
[1641228100490,0.6670542,3748.4,3748.2,1.5841]
[1641228100891,0.0104763,3748.3,3748.2,1.5841]
[1641228101292,0.0104763,3748.3,3748.2,1.5937632]
[1641228101696,0.0104763,3748.3,3748.2,1.9777632]
[1641228102094,0.0104763,3748.3,3748.2,2.9777632]
[1641228102292,1.71238452,3749.2,3748.3,8.55]
[1641228102492,1.71238452,3749.2,3748.6,0.66693]
[1641228102692,1.71238452,3749.2,3749.1,1.37118689]
[1641228102895,1.71238452,3749.6,3749.1,1.37118689]
[1641228103094,0.6669259,3749.4,3749.1,1.37573428]
[1641228103296,0.9669259,3749.4,3749.2,0.00397897]
[1641228104096,0.9669259,3749.4,3749.2,0.67090897]
[1641228104561,0.9669259,3749.4,3749.3,0.00341054]
[1641228104562,7.0869259,3749.4,3749.3,0.00341054]
[1641228105561,6.7869259,3749.4,3749.3,0.00341054]
[1641228105866,6.12,3749.4,3749.3,0.38741054]
[1641228106261,6.12,3749.4,3749.3,5.72171054]
[1641228106864,6.42,3749.4,3749.3,5.72171054]
[1641228107062,6.42,3749.4,3749.3,6.38846054]
[1641228107263,6.42,3749.4,3749.3,7.23982547]
[1641228107663,6.12,3749.4,3749.3,7.23982547]
[1641228107863,6.0122967,3749.4,3749.3,8.23982547]
[1641228108288,6.0122967,3749.4,3749.3,7.57307547]
[1641228108491,1.71238452,3750.2,3749.3,6.57307547]
[1641228108687,1.71238452,3750.2,3750.0,1.40151482]
[1641228108889,1.71238452,3750.2,3750.0,2.06831482]
[1641228108890,2.00996733,3750.2,3750.0,2.06831482]
[1641228109494,2.67676093,3750.2,3750.0,2.06831482]
[1641228109893,0.9667936,3750.2,3750.0,2.06831482]
[1641228112156,0.9667936,3750.2,3750.0,0.6668]
[1641228113758,0.2167936,3750.2,3750.0,0.6668]
[1641228113958,0.2167936,3750.2,3750.1,0.9046545]
[1641228115625,0.2167936,3750.2,3749.9,0.9046545]
[1641228116624,0.2167936,3750.2,3749.8,1.81827451]
[1641228117125,0.2167936,3750.2,3749.9,0.00113684]
[1641228119641,0.2167936,3750.2,3749.8,1.76941135]
[1641228120446,1.0,3750.7,3750.0,0.00305139]
[1641228120648,2.06398363,3751.2,3750.1,3.06274624]
[1641228120844,2.06398363,3751.2,3750.5,0.66646]
[1641228120845,0.06398363,3751.2,3750.5,0.66646]
[1641228121044,0.06398363,3751.2,3750.6,0.384]
[1641228121244,7.81251409,3751.9,3750.7,0.384]
[1641228121452,7.81251409,3751.9,3750.8,1.48494388]
[1641228121644,0.01023162,3751.7,3751.4,1.71703359]
[1641228122045,0.0096632,3751.6,3751.4,1.71703359]
[1641228122445,0.00909477,3751.5,3751.4,1.05060359]
[1641228123692,0.00909477,3751.5,3751.4,1.43460359]
[1641228123902,0.00909477,3751.5,3751.4,2.43460359]
[1641228124093,0.00909477,3751.5,3751.4,7.76590359]
[1641228125696,0.00909477,3751.5,3751.4,6.76590359]
[1641228126746,0.01956213,3751.5,3751.4,6.76590359]
[1641228127149,5.10696213,3751.9,3751.5,8.6695]
[1641228127351,0.01202019,3754.0,3753.6,1.0001337]
[1641228127554,16.53251409,3754.2,3753.6,1.54039565]
[1641228127750,14.84,3753.9,3753.6,1.54039565]
[1641228127948,14.85364216,3753.9,3753.6,1.54039565]
[1641228128149,14.85364216,3753.9,3753.6,2.94331828]
[1641228128349,14.85364216,3753.9,3753.6,1.54039565]
[1641228128550,20.97364216,3753.9,3753.6,1.54039565]
[1641228129357,4.18811941,3753.7,3753.6,0.60869565]
[1641228129555,7.25811941,3753.7,3753.6,0.60869565]
[1641228129754,7.12062473,3753.7,3753.6,0.60869565]
[1641228129954,7.42062473,3753.7,3753.6,0.60869565]
[1641228130158,0.31250532,3753.7,3753.6,0.60869565]
[1641228130353,0.31250532,3753.7,3753.6,0.71405365]
[1641228130596,0.01250532,3753.7,3753.6,0.71405365]
[1641228130795,0.31250532,3753.7,3753.6,0.71405365]
[1641228131199,0.01250532,3753.7,3753.6,1.74528334]
[1641228131395,0.31250532,3753.7,3753.6,1.74528334]
[1641228131795,0.01250532,3753.7,3753.6,1.74806096]
[1641228134780,0.01250532,3753.7,3753.6,7.07626096]
[1641228135782,0.00047187,3753.7,3753.6,7.07626096]
[1641228135983,0.00047187,3753.7,3753.6,6.04503127]
[1641228136784,0.00047187,3753.7,3753.6,7.04503127]
[1641228137886,0.00047187,3753.7,3753.6,7.42903127]
[1641228138701,0.00047187,3753.7,3753.6,6.42903127]
[1641228138902,0.00047187,3753.7,3753.6,7.42903127]
[1641228139102,0.00047187,3753.7,3753.6,8.03083127]
[1641228139707,1.69076102,3754.8,3754.0,0.6659]
[1641228140004,0.00568423,3754.7,3754.1,2.66358]
[1641228140405,0.00511581,3754.6,3754.2,2.58505298]
[1641228140605,0.00511581,3754.6,3754.1,2.66358]
[1641228140805,0.00454739,3754.5,3754.1,2.66358]
[1641228141003,0.00454739,3754.5,3754.2,5.3274]
[1641228141206,0.25454739,3754.8,3754.2,5.3274]
[1641228141407,0.14582096,3754.9,3754.3,1.61007342]
[1641228141604,0.00113684,3754.7,3754.5,0.66583]
[1641228141849,1.69498057,3754.7,3754.6,0.384]
[1641228142050,1.69498057,3754.7,3754.6,5.7108]
[1641228142449,1.69498057,3754.7,3754.6,6.7108]
[1641228142649,0.00113684,3754.7,3754.6,6.7108]
[1641228144060,0.00113684,3754.7,3754.6,5.7108]
[1641228144257,0.00113684,3754.7,3754.6,6.7108]
[1641228144658,0.00113684,3754.7,3754.6,6.71357796]
[1641228145159,0.14582096,3754.9,3754.8,7.01573]
[1641228145358,0.14582096,3754.9,3754.8,6.37623]
[1641228145607,0.14695781,3754.9,3754.8,7.37623]
[1641228146008,0.14695781,3754.9,3754.8,6.37623]
[1641228146610,6.18468249,3755.6,3755.2,0.66564]
[1641228146809,6.48468249,3755.6,3755.3,1.3313]
[1641228147009,0.00341054,3755.5,3755.3,1.3313]
[1641228147411,0.00284212,3755.4,3755.3,1.3313]
[1641228147614,0.00284212,3755.4,3755.3,0.66565]
[1641228147813,0.00284212,3755.4,3755.3,1.75772846]
[1641228148110,6.37284212,3755.6,3755.3,1.75772846]
[1641228149014,6.37284212,3755.6,3755.3,0.66565]
[1641228149250,6.37284212,3755.6,3755.2,2.66258]
[1641228150059,6.37284212,3755.6,3755.1,1.33144]
[1641228150262,0.25284212,3755.6,3755.1,1.33144]
[1641228150458,0.25284212,3755.6,3755.2,0.00113685]
[1641228150659,1.61452519,3755.9,3755.2,0.00113685]
[1641228150860,1.70627064,3755.5,3755.2,0.00113685]
[1641228151158,2.00627064,3755.5,3755.2,0.00113685]
[1641228151359,2.00627064,3755.5,3755.2,0.66691685]
[1641228151561,2.00627064,3755.5,3755.2,0.00113685]
[1641228152160,0.3,3755.5,3755.0,0.0022737]
[1641228152361,1.0,3755.6,3755.0,0.0022737]
[1641228152561,1.70627064,3755.4,3755.0,0.0022737]
[1641228152765,1.06476332,3755.2,3755.0,0.0022737]
[1641228153019,6.35,3754.8,3753.6,0.71405365]
[1641228153212,2.4703083,3754.7,3753.6,0.71405365]
[1641228153410,2.01236948,3754.7,3753.6,0.71405365]
[1641228154212,2.01236948,3754.7,3754.2,0.06468245]
[1641228154414,3.71864012,3754.7,3754.2,0.06468245]
[1641228155317,1.70627064,3754.7,3754.2,0.06468245]
[1641228155913,4.05412634,3754.7,3754.2,0.06468245]
[1641228156314,1.18203396,3754.6,3754.3,0.00397896]
[1641228156952,2.5345047,3754.5,3754.3,0.00397896]
[1641228157351,1.0,3754.4,3754.3,0.00397896]
[1641228157556,1.3,3754.4,3754.3,0.00397896]
[1641228157757,3.75823325,3754.4,3754.1,0.00511581]
[1641228157958,1.3,3754.4,3754.1,0.00511581]
[1641228158155,0.3,3754.4,3754.1,0.00511581]
[1641228158555,5.78757917,3754.5,3754.1,0.00511581]
[1641228158556,2.70304856,3754.5,3754.1,0.00511581]
[1641228158756,2.70304856,3754.5,3754.1,0.11047481]
[1641228158958,2.03695016,3754.5,3754.1,0.11047481]
[1641228159158,2.00627064,3754.5,3754.2,0.00454738]
[1641228159357,0.0022,3754.9,3754.2,0.00454738]
[1641228159358,0.3,3754.4,3754.2,0.00454738]
[1641228159557,0.0022,3754.9,3754.2,0.00454738]
[1641228159957,0.0022,3754.9,3754.3,0.66599]
[1641228160357,0.0022,3754.9,3754.4,0.00341054]
[1641228161395,0.39211649,3754.9,3754.4,0.00341054]
[1641228161997,0.39211649,3754.9,3754.5,0.66594]
[1641228162198,0.39211649,3754.9,3754.4,0.00341054]
[1641228162399,0.39211649,3754.9,3754.6,0.00227369]
[1641228162603,0.39211649,3754.9,3754.7,1.2364935]
[1641228162801,0.0022,3754.9,3754.7,1.2364935]
[1641228163002,0.0022,3754.9,3754.8,0.00113684]
[1641228163400,0.0022,3754.9,3754.5,1.33173]
[1641228163599,0.0022,3754.9,3754.6,0.00227369]
[1641228164263,0.0022,3754.9,3754.7,1.33173]
[1641228164662,0.0022,3754.9,3754.8,0.00113684]
[1641228166362,0.0022,3754.9,3754.8,0.00603988]
[1641228170612,0.0022,3754.9,3754.8,0.11139788]
[1641228178304,1.64634566,3755.6,3755.2,1.17840936]
[1641228178507,0.3,3755.6,3755.3,1.33166]
[1641228178705,0.00121055,3755.5,3755.3,1.33166]